[Event "Titled Tuesday Blitz April 4 Late 2023"]
[White "Hirneise, Jens"]
[Black "Matute Escobar, Roxanny"]
[WhiteFideId "24614734"]
[BlackFideId "3926028"]
[WhiteElo "2345"]
[BlackElo "1844"]
[Result "1-0"]
[Round "01"]
[TimeControl "180+2"]
[Date "2023.04.04"]
[WhiteClock "0:00:13"]
[BlackClock "0:00:04"]

1. b4 {[%clk 0:02:53]}  e5 {[%clk 0:02:58]} 2. Bb2 {[%clk 0:02:53]}  d6 {[%clk 0:02:57]} 3. d4 {[%clk 0:02:51]}  exd4 {[%clk 0:02:56]} 4. Qxd4 {[%clk 0:02:52]}  Nc6 {[%clk 0:02:54]} 5. Qd2 {[%clk 0:02:51]}  a6 {[%clk 0:02:53]} 6. Nf3 {[%clk 0:02:43]}  Nf6 {[%clk 0:02:50]} 7. e3 {[%clk 0:02:41]}  Bf5 {[%clk 0:02:42]} 8. Bd3 {[%clk 0:02:36]}  Bxd3 {[%clk 0:02:37]} 9. cxd3 {[%clk 0:02:37]}  d5 {[%clk 0:02:35]} 10. a3 {[%clk 0:02:35]}  Bd6 {[%clk 0:02:32]} 11. O-O {[%clk 0:02:35]}  O-O {[%clk 0:02:32]} 12. Nc3 {[%clk 0:02:34]}  Ne7 {[%clk 0:02:21]} 13. Ne2 {[%clk 0:02:33]}  Ng6 {[%clk 0:02:07]} 14. Ng3 {[%clk 0:02:30]}  c5 {[%clk 0:01:52]} 15. bxc5 {[%clk 0:02:27]}  Bxc5 {[%clk 0:01:52]} 16. Rfc1 {[%clk 0:02:24]}  Rc8 {[%clk 0:01:47]} 17. a4 {[%clk 0:02:11]}  Re8 {[%clk 0:01:37]} 18. a5 {[%clk 0:02:11]}  h6 {[%clk 0:01:25]} 19. Nf5 {[%clk 0:02:10]}  Re6 {[%clk 0:00:57]} 20. N3d4 {[%clk 0:02:05]}  Re8 {[%clk 0:00:53]} 21. Nb3 {[%clk 0:02:05]}  Bf8 {[%clk 0:00:48]} 22. Rxc8 {[%clk 0:02:04]}  Qxc8 {[%clk 0:00:48]} 23. Nxh6+ {[%clk 0:02:05]}  gxh6 {[%clk 0:00:40]} 24. Bxf6 {[%clk 0:02:05]}  Qf5 {[%clk 0:00:39]} 25. Bb2 {[%clk 0:01:59]}  Qg5 {[%clk 0:00:34]} 26. f4 {[%clk 0:01:52]}  Qg4 {[%clk 0:00:31]} 27. Qc3 {[%clk 0:01:50]}  Rxe3 {[%clk 0:00:26]} 28. Qd2 {[%clk 0:01:40]}  Qxf4 {[%clk 0:00:26]} 29. Bd4 {[%clk 0:01:34]}  Re8 {[%clk 0:00:13]} 30. g3 {[%clk 0:01:20]}  Qg4 {[%clk 0:00:13]} 31. Re1 {[%clk 0:01:12]}  Rxe1+ {[%clk 0:00:12]} 32. Qxe1 {[%clk 0:01:13]}  Nh4 {[%clk 0:00:13]} 33. Qf1 {[%clk 0:01:01]}  Nf5 {[%clk 0:00:13]} 34. Bf2 {[%clk 0:00:53]}  Ng7 {[%clk 0:00:12]} 35. Qc1 {[%clk 0:00:46]}  Qb4 {[%clk 0:00:13]} 36. Qd1 {[%clk 0:00:42]}  Ne6 {[%clk 0:00:12]} 37. h4 {[%clk 0:00:38]}  d4 {[%clk 0:00:13]} 38. Qg4+ {[%clk 0:00:36]}  Kh7 {[%clk 0:00:12]} 39. Nxd4 {[%clk 0:00:31]}  Nxd4 {[%clk 0:00:10]} 40. Bxd4 {[%clk 0:00:27]}  Qe1+ {[%clk 0:00:11]} 41. Kg2 {[%clk 0:00:26]}  Qd2+ {[%clk 0:00:11]} 42. Kh3 {[%clk 0:00:25]}  Qxd3 {[%clk 0:00:11]} 43. Qf4 {[%clk 0:00:20]}  Qg6 {[%clk 0:00:10]} 44. Qe5 {[%clk 0:00:14]}  Qe6+ {[%clk 0:00:09]} 45. Qxe6 {[%clk 0:00:14]}  fxe6 {[%clk 0:00:10]} 46. Kg4 {[%clk 0:00:15]}  Kg6 {[%clk 0:00:10]} 47. h5+ {[%clk 0:00:15]}  Kf7 {[%clk 0:00:11]} 48. Bb6 {[%clk 0:00:14]}  Bd6 {[%clk 0:00:11]} 49. Kf3 {[%clk 0:00:14]}  Kf6 {[%clk 0:00:11]} 50. g4 {[%clk 0:00:13]}  Kg5 {[%clk 0:00:11]} 51. Bd8+ {[%clk 0:00:13]}  Be7 {[%clk 0:00:04]} 52. Bxe7# {[%clk 0:00:13]} 1-0


[Site "https://www.chess.com"]

[Event "Titled Tuesday Blitz April 4 Late 2023"]
[White "Manu_ChessExcelsior"]
[Black "Han, Yichen"]
[BlackFideId "1054430"]
[WhiteElo "2132"]
[BlackElo "2342"]
[Result "0-1"]
[Round "01"]
[TimeControl "180+2"]
[Date "2023.04.04"]
[WhiteClock "0:00:04"]
[BlackClock "0:00:06"]

1. e4 {[%clk 0:02:58]}  e6 {[%clk 0:02:55]} 2. d3 {[%clk 0:02:57]}  d5 {[%clk 0:02:55]} 3. Nd2 {[%clk 0:02:58]}  g6 {[%clk 0:02:53]} 4. g3 {[%clk 0:02:56]}  Bg7 {[%clk 0:02:53]} 5. Bg2 {[%clk 0:02:56]}  Ne7 {[%clk 0:02:53]} 6. Ne2 {[%clk 0:02:57]}  c5 {[%clk 0:02:53]} 7. O-O {[%clk 0:02:57]}  Nbc6 {[%clk 0:02:53]} 8. f4 {[%clk 0:02:45]}  O-O {[%clk 0:02:52]} 9. Nf3 {[%clk 0:02:42]}  dxe4 {[%clk 0:02:51]} 10. dxe4 {[%clk 0:02:43]}  b6 {[%clk 0:02:50]} 11. c3 {[%clk 0:02:39]}  Ba6 {[%clk 0:02:50]} 12. Qxd8 {[%clk 0:02:24]}  Raxd8 {[%clk 0:02:49]} 13. Re1 {[%clk 0:02:24]}  Na5 {[%clk 0:02:33]} 14. Nd2 {[%clk 0:01:52]}  Nc4 {[%clk 0:02:14]} 15. Nxc4 {[%clk 0:01:50]}  Bxc4 {[%clk 0:02:15]} 16. Be3 {[%clk 0:01:48]}  Rd3 {[%clk 0:02:12]} 17. Kf2 {[%clk 0:01:46]}  Rfd8 {[%clk 0:02:11]} 18. Nc1 {[%clk 0:01:33]}  Rd1 {[%clk 0:02:02]} 19. Nb3 {[%clk 0:01:28]}  R1d7 {[%clk 0:01:57]} 20. Bf3 {[%clk 0:01:27]}  a5 {[%clk 0:01:55]} 21. Rad1 {[%clk 0:01:25]}  a4 {[%clk 0:01:55]} 22. Nc1 {[%clk 0:01:25]}  a3 {[%clk 0:01:54]} 23. b3 {[%clk 0:01:17]}  Ba6 {[%clk 0:01:48]} 24. c4 {[%clk 0:01:14]}  Nc6 {[%clk 0:01:48]} 25. e5 {[%clk 0:00:59]}  Nb4 {[%clk 0:01:40]} 26. Rxd7 {[%clk 0:00:56]}  Rxd7 {[%clk 0:01:40]} 27. Re2 {[%clk 0:00:57]}  f6 {[%clk 0:01:33]} 28. Bd2 {[%clk 0:00:43]}  fxe5 {[%clk 0:01:11]} 29. Bxb4 {[%clk 0:00:42]}  cxb4 {[%clk 0:01:12]} 30. fxe5 {[%clk 0:00:36]}  Bh6 {[%clk 0:01:02]} 31. Re1 {[%clk 0:00:16]}  Bxc1 {[%clk 0:00:56]} 32. Rxc1 {[%clk 0:00:17]}  Rd2+ {[%clk 0:00:56]} 33. Ke3 {[%clk 0:00:17]}  Rxa2 {[%clk 0:00:56]} 34. Bg4 {[%clk 0:00:17]}  Rb2 {[%clk 0:00:46]} 35. Bxe6+ {[%clk 0:00:16]}  Kg7 {[%clk 0:00:47]} 36. c5 {[%clk 0:00:17]}  bxc5 {[%clk 0:00:45]} 37. Rxc5 {[%clk 0:00:16]}  Re2+ {[%clk 0:00:31]} 38. Kf4 {[%clk 0:00:15]}  Bd3 {[%clk 0:00:27]} 39. Ra5 {[%clk 0:00:14]}  Re4+ {[%clk 0:00:22]} 40. Kf3 {[%clk 0:00:13]}  Re1 {[%clk 0:00:18]} 41. g4 {[%clk 0:00:12]}  Bb1 {[%clk 0:00:16]} 42. g5 {[%clk 0:00:12]}  a2 {[%clk 0:00:13]} 43. Ra7+ {[%clk 0:00:12]}  Kf8 {[%clk 0:00:14]} 44. Rf7+ {[%clk 0:00:11]}  Ke8 {[%clk 0:00:13]} 45. Ra7 {[%clk 0:00:09]}  Rxe5 {[%clk 0:00:12]} 46. Bf7+ {[%clk 0:00:06]}  Kf8 {[%clk 0:00:11]} 47. Bc4 {[%clk 0:00:06]}  Re1 {[%clk 0:00:09]} 48. Ra8+ {[%clk 0:00:05]}  Ke7 {[%clk 0:00:07]} 49. Ra7+ {[%clk 0:00:06]}  Kd6 {[%clk 0:00:07]} 50. h4 {[%clk 0:00:07]}  Be4+ {[%clk 0:00:06]} 51. Kf2 {[%clk 0:00:07]}  a1=Q {[%clk 0:00:07]} 52. Rd7+ {[%clk 0:00:04]}  Kxd7 {[%clk 0:00:06]} 53. Bb5+ {[%clk 0:00:05]}  Kc7 {[%clk 0:00:06]} 54. Bc4 {[%clk 0:00:04]}  Qd1 {[%clk 0:00:05]} 55. Be2 {[%clk 0:00:04]}  Qxe2+ {[%clk 0:00:06]} 0-1


[Site "https://www.chess.com"]

[Event "Titled Tuesday Blitz April 4 Late 2023"]
[White "Suder, Jakub"]
[Black "Winkels, Marcel"]
[WhiteFideId "1195310"]
[BlackFideId "1003887"]
[WhiteElo "2287"]
[BlackElo "1900"]
[Result "1-0"]
[Round "01"]
[TimeControl "180+2"]
[Date "2023.04.04"]
[WhiteClock "0:01:35"]
[BlackClock "0:00:32"]

1. d4 {[%clk 0:03:00]}  Nf6 {[%clk 0:02:58]} 2. c4 {[%clk 0:03:00]}  g6 {[%clk 0:02:59]} 3. Nc3 {[%clk 0:02:59]}  Bg7 {[%clk 0:02:59]} 4. e4 {[%clk 0:02:59]}  d6 {[%clk 0:03:00]} 5. Nf3 {[%clk 0:03:00]}  O-O {[%clk 0:02:59]} 6. Be2 {[%clk 0:03:00]}  Na6 {[%clk 0:02:56]} 7. O-O {[%clk 0:03:01]}  e5 {[%clk 0:02:55]} 8. Be3 {[%clk 0:03:00]}  c6 {[%clk 0:02:51]} 9. dxe5 {[%clk 0:02:58]}  dxe5 {[%clk 0:02:50]} 10. Qc2 {[%clk 0:02:59]}  Qe7 {[%clk 0:02:37]} 11. a3 {[%clk 0:02:59]}  Nh5 {[%clk 0:02:29]} 12. Rfd1 {[%clk 0:02:54]}  f5 {[%clk 0:02:23]} 13. exf5 {[%clk 0:02:53]}  Bxf5 {[%clk 0:02:17]} 14. Bd3 {[%clk 0:02:51]}  Nf4 {[%clk 0:02:07]} 15. Bxf5 {[%clk 0:02:46]}  Rxf5 {[%clk 0:02:02]} 16. Ne4 {[%clk 0:02:40]}  Rff8 {[%clk 0:01:43]} 17. Bxf4 {[%clk 0:02:31]}  Rxf4 {[%clk 0:01:33]} 18. Re1 {[%clk 0:02:31]}  Raf8 {[%clk 0:01:29]} 19. c5 {[%clk 0:02:26]}  Nc7 {[%clk 0:01:22]} 20. Nd6 {[%clk 0:02:14]}  Nd5 {[%clk 0:01:20]} 21. Re4 {[%clk 0:02:04]}  Rxf3 {[%clk 0:01:12]} 22. gxf3 {[%clk 0:02:04]}  Rxf3 {[%clk 0:01:12]} 23. Rg4 {[%clk 0:01:57]}  Nf4 {[%clk 0:01:08]} 24. Qe4 {[%clk 0:01:44]}  Nh3+ {[%clk 0:01:00]} 25. Kg2 {[%clk 0:01:43]}  Rf4 {[%clk 0:00:42]} 26. Rxf4 {[%clk 0:01:40]}  Nxf4+ {[%clk 0:00:41]} 27. Kh1 {[%clk 0:01:40]}  Qh4 {[%clk 0:00:37]} 28. Qc4+ {[%clk 0:01:36]}  Kh8 {[%clk 0:00:32]} 29. Nf7+ {[%clk 0:01:35]}  Kg8 {[%clk 0:00:32]} 30. Nh6+ {[%clk 0:01:35]} 1-0


[Site "https://www.chess.com"]

[Event "Titled Tuesday Blitz April 4 Late 2023"]
[White "Poltorak, Sebastian"]
[Black "Oliveira, Tiago Batista"]
[WhiteFideId "1199498"]
[BlackFideId "2108291"]
[WhiteElo "2195"]
[BlackElo "1962"]
[Result "1-0"]
[Round "01"]
[TimeControl "180+2"]
[Date "2023.04.04"]
[WhiteClock "0:00:47"]
[BlackClock "0:00:06"]

1. d4 {[%clk 0:03:00]}  Nf6 {[%clk 0:02:58]} 2. Nf3 {[%clk 0:03:01]}  g6 {[%clk 0:02:58]} 3. g3 {[%clk 0:03:01]}  Bg7 {[%clk 0:02:56]} 4. Bg2 {[%clk 0:03:01]}  O-O {[%clk 0:02:54]} 5. O-O {[%clk 0:03:02]}  d5 {[%clk 0:02:53]} 6. c4 {[%clk 0:02:57]}  c6 {[%clk 0:02:50]} 7. b3 {[%clk 0:02:49]}  Be6 {[%clk 0:02:46]} 8. cxd5 {[%clk 0:02:44]}  Bxd5 {[%clk 0:02:45]} 9. Bb2 {[%clk 0:02:43]}  Ne4 {[%clk 0:02:28]} 10. Re1 {[%clk 0:02:35]}  Nd7 {[%clk 0:02:26]} 11. Nbd2 {[%clk 0:02:23]}  Ndf6 {[%clk 0:02:24]} 12. Nxe4 {[%clk 0:02:13]}  Nxe4 {[%clk 0:02:21]} 13. Ne5 {[%clk 0:02:04]}  a5 {[%clk 0:01:35]} 14. f3 {[%clk 0:02:00]}  Ng5 {[%clk 0:01:19]} 15. e4 {[%clk 0:01:56]}  Be6 {[%clk 0:01:19]} 16. h4 {[%clk 0:01:52]}  Nh3+ {[%clk 0:01:04]} 17. Kh2 {[%clk 0:01:51]}  Qc8 {[%clk 0:00:52]} 18. Bxh3 {[%clk 0:01:49]}  Bxh3 {[%clk 0:00:52]} 19. g4 {[%clk 0:01:49]}  c5 {[%clk 0:00:24]} 20. Kxh3 {[%clk 0:01:47]}  cxd4 {[%clk 0:00:23]} 21. Nd3 {[%clk 0:01:46]}  e5 {[%clk 0:00:21]} 22. Rc1 {[%clk 0:01:44]}  Qe6 {[%clk 0:00:18]} 23. Ba3 {[%clk 0:01:43]}  Rfc8 {[%clk 0:00:18]} 24. Qd2 {[%clk 0:01:43]}  h5 {[%clk 0:00:17]} 25. Rxc8+ {[%clk 0:01:42]}  Rxc8 {[%clk 0:00:16]} 26. Rc1 {[%clk 0:01:43]}  Re8 {[%clk 0:00:16]} 27. Kg3 {[%clk 0:01:23]}  hxg4 {[%clk 0:00:16]} 28. fxg4 {[%clk 0:01:24]}  a4 {[%clk 0:00:15]} 29. Nc5 {[%clk 0:01:21]}  Qe7 {[%clk 0:00:15]} 30. Bb4 {[%clk 0:01:05]}  axb3 {[%clk 0:00:15]} 31. axb3 {[%clk 0:01:04]}  b6 {[%clk 0:00:15]} 32. Nd3 {[%clk 0:01:03]}  Qf6 {[%clk 0:00:14]} 33. Qg5 {[%clk 0:00:57]}  Qe6 {[%clk 0:00:13]} 34. Rc4 {[%clk 0:00:53]}  b5 {[%clk 0:00:13]} 35. Nc5 {[%clk 0:00:54]}  Qc8 {[%clk 0:00:12]} 36. Rc1 {[%clk 0:00:54]}  Qa8 {[%clk 0:00:11]} 37. h5 {[%clk 0:00:50]}  Qa2 {[%clk 0:00:11]} 38. hxg6 {[%clk 0:00:47]}  fxg6 {[%clk 0:00:07]} 39. Qxg6 {[%clk 0:00:47]}  Rf8 {[%clk 0:00:07]} 40. Qe6+ {[%clk 0:00:47]}  Kh8 {[%clk 0:00:06]} 41. Rh1+ {[%clk 0:00:47]} 1-0


[Site "https://www.chess.com"]

[Event "Titled Tuesday Blitz April 4 Late 2023"]
[White "tandercat"]
[Black "Mostbauer, Florian"]
[BlackFideId "1626671"]
[WhiteElo "1922"]
[BlackElo "2234"]
[Result "1-0"]
[Round "01"]
[TimeControl "180+2"]
[Date "2023.04.04"]
[WhiteClock "0:00:21"]
[BlackClock "0:00:35"]

1. d4 {[%clk 0:02:59]}  d5 {[%clk 0:02:59]} 2. c4 {[%clk 0:02:58]}  c6 {[%clk 0:02:59]} 3. cxd5 {[%clk 0:02:57]}  cxd5 {[%clk 0:02:59]} 4. Nc3 {[%clk 0:02:58]}  Nc6 {[%clk 0:02:58]} 5. Bf4 {[%clk 0:02:58]}  e5 {[%clk 0:02:58]} 6. Bxe5 {[%clk 0:02:56]}  Nxe5 {[%clk 0:02:58]} 7. dxe5 {[%clk 0:02:57]}  d4 {[%clk 0:02:58]} 8. Ne4 {[%clk 0:02:57]}  Bb4+ {[%clk 0:02:58]} 9. Nd2 {[%clk 0:02:54]}  Ne7 {[%clk 0:02:58]} 10. Nf3 {[%clk 0:02:44]}  Nc6 {[%clk 0:02:58]} 11. g3 {[%clk 0:02:39]}  Bg4 {[%clk 0:02:44]} 12. Bg2 {[%clk 0:02:39]}  Bxf3 {[%clk 0:01:29]} 13. Bxf3 {[%clk 0:02:40]}  Qa5 {[%clk 0:01:23]} 14. a3 {[%clk 0:02:31]}  Bxd2+ {[%clk 0:01:22]} 15. Qxd2 {[%clk 0:02:32]}  Qxd2+ {[%clk 0:01:22]} 16. Kxd2 {[%clk 0:02:33]}  Nxe5 {[%clk 0:01:19]} 17. Bg2 {[%clk 0:01:52]}  O-O-O {[%clk 0:00:52]} 18. Rhc1+ {[%clk 0:01:49]}  Kb8 {[%clk 0:00:53]} 19. Rc5 {[%clk 0:01:44]}  Rhe8 {[%clk 0:00:52]} 20. Rac1 {[%clk 0:01:29]}  Ng4 {[%clk 0:00:47]} 21. Rc7 {[%clk 0:01:19]}  Nxf2 {[%clk 0:00:41]} 22. Rxb7+ {[%clk 0:01:13]}  Ka8 {[%clk 0:00:42]} 23. Rcc7 {[%clk 0:00:36]}  Ne4+ {[%clk 0:00:35]} 24. Ke1 {[%clk 0:00:27]}  f5 {[%clk 0:00:35]} 25. Rxa7+ {[%clk 0:00:25]}  Kb8 {[%clk 0:00:35]} 26. Rcb7+ {[%clk 0:00:25]}  Kc8 {[%clk 0:00:36]} 27. Rxg7 {[%clk 0:00:22]}  d3 {[%clk 0:00:35]} 28. Ra8# {[%clk 0:00:21]} 1-0


[Site "https://www.chess.com"]

[Event "Titled Tuesday Blitz April 4 Late 2023"]
[White "Zhang, Derek"]
[Black "Vargas, Mauricio"]
[WhiteFideId "2087871"]
[BlackFideId "4404572"]
[WhiteElo "2087"]
[BlackElo "1998"]
[Result "1-0"]
[Round "01"]
[TimeControl "180+2"]
[Date "2023.04.04"]
[WhiteClock "0:01:24"]
[BlackClock "0:00:04"]

1. f4 {[%clk 0:02:59]}  e5 {[%clk 0:02:56]} 2. fxe5 {[%clk 0:02:55]}  d6 {[%clk 0:02:56]} 3. exd6 {[%clk 0:02:56]}  Bxd6 {[%clk 0:02:57]} 4. Nf3 {[%clk 0:02:54]}  Bg4 {[%clk 0:02:53]} 5. e4 {[%clk 0:02:52]}  Nf6 {[%clk 0:02:41]} 6. Nc3 {[%clk 0:02:49]}  Nc6 {[%clk 0:02:28]} 7. Bb5 {[%clk 0:02:48]}  Qd7 {[%clk 0:02:15]} 8. d4 {[%clk 0:02:42]}  Bb4 {[%clk 0:02:06]} 9. O-O {[%clk 0:02:32]}  O-O {[%clk 0:01:58]} 10. d5 {[%clk 0:02:19]}  Qe7 {[%clk 0:01:48]} 11. dxc6 {[%clk 0:02:02]}  Qc5+ {[%clk 0:01:48]} 12. Qd4 {[%clk 0:02:00]}  Qe7 {[%clk 0:01:20]} 13. Kh1 {[%clk 0:01:57]}  bxc6 {[%clk 0:01:17]} 14. Bxc6 {[%clk 0:01:55]}  Rad8 {[%clk 0:01:16]} 15. Qc4 {[%clk 0:01:53]}  Be6 {[%clk 0:01:09]} 16. Qe2 {[%clk 0:01:35]}  Qc5 {[%clk 0:01:07]} 17. Bd5 {[%clk 0:01:33]}  Bg4 {[%clk 0:00:52]} 18. Bg5 {[%clk 0:01:29]}  c6 {[%clk 0:00:21]} 19. Bxf6 {[%clk 0:01:26]}  gxf6 {[%clk 0:00:17]} 20. Bb3 {[%clk 0:01:27]}  Bxc3 {[%clk 0:00:07]} 21. bxc3 {[%clk 0:01:27]}  Qxc3 {[%clk 0:00:07]} 22. Qf2 {[%clk 0:01:25]}  Kh8 {[%clk 0:00:04]} 23. Nh4 {[%clk 0:01:24]} 1-0


[Site "https://www.chess.com"]

[Event "Titled Tuesday Blitz April 4 Late 2023"]
[White "Di Nicolantonio, Lucas"]
[Black "Erigaisi Arjun"]
[WhiteFideId "680460"]
[BlackFideId "35009192"]
[WhiteElo "2358"]
[BlackElo "2737"]
[Result "0-1"]
[Round "02"]
[TimeControl "180+2"]
[Date "2023.04.04"]
[WhiteClock "0:00:59"]
[BlackClock "0:02:17"]

1. Nf3 {[%clk 0:03:00]}  d6 {[%clk 0:02:59]} 2. e4 {[%clk 0:03:00]}  g6 {[%clk 0:02:58]} 3. d4 {[%clk 0:03:00]}  Bg7 {[%clk 0:02:59]} 4. Be3 {[%clk 0:03:00]}  Nc6 {[%clk 0:02:57]} 5. Qd2 {[%clk 0:03:00]}  Bg4 {[%clk 0:02:55]} 6. Nc3 {[%clk 0:02:58]}  Bxf3 {[%clk 0:02:55]} 7. gxf3 {[%clk 0:02:58]}  e5 {[%clk 0:02:54]} 8. d5 {[%clk 0:02:51]}  Nd4 {[%clk 0:02:54]} 9. O-O-O {[%clk 0:02:35]}  Nxf3 {[%clk 0:02:52]} 10. Bb5+ {[%clk 0:02:35]}  Kf8 {[%clk 0:02:47]} 11. Qd3 {[%clk 0:02:26]}  a6 {[%clk 0:02:42]} 12. Ba4 {[%clk 0:02:19]}  h5 {[%clk 0:02:37]} 13. Kb1 {[%clk 0:02:16]}  Qh4 {[%clk 0:02:33]} 14. Ne2 {[%clk 0:02:13]}  Nf6 {[%clk 0:02:30]} 15. Ng3 {[%clk 0:02:08]}  Ng4 {[%clk 0:02:29]} 16. Bc1 {[%clk 0:01:50]}  Nfxh2 {[%clk 0:02:26]} 17. Qe2 {[%clk 0:01:37]}  Qf6 {[%clk 0:02:26]} 18. f3 {[%clk 0:01:21]}  Qxf3 {[%clk 0:02:19]} 19. Rxh2 {[%clk 0:01:21]}  Nxh2 {[%clk 0:02:19]} 20. Qxh2 {[%clk 0:01:16]}  Qxd1 {[%clk 0:02:19]} 21. Qf2 {[%clk 0:01:00]}  h4 {[%clk 0:02:18]} 22. Nf1 {[%clk 0:00:59]}  Qd4 {[%clk 0:02:17]} 0-1


[Site "https://www.chess.com"]

[Event "Titled Tuesday Blitz April 4 Late 2023"]
[White "Tsvetkov, Andrey"]
[Black "Firouzja, Alireza"]
[WhiteFideId "34139360"]
[BlackFideId "12573981"]
[WhiteElo "2319"]
[BlackElo "2904"]
[Result "0-1"]
[Round "02"]
[TimeControl "180+2"]
[Date "2023.04.04"]
[WhiteClock "0:00:37"]
[BlackClock "0:02:10"]

1. d4 {[%clk 0:03:00]}  Nf6 {[%clk 0:02:59]} 2. c4 {[%clk 0:03:01]}  g6 {[%clk 0:02:59]} 3. Nc3 {[%clk 0:03:00]}  Bg7 {[%clk 0:02:59]} 4. e4 {[%clk 0:03:00]}  d6 {[%clk 0:03:00]} 5. Nf3 {[%clk 0:03:00]}  O-O {[%clk 0:03:00]} 6. Be2 {[%clk 0:03:00]}  e5 {[%clk 0:03:01]} 7. O-O {[%clk 0:03:00]}  Na6 {[%clk 0:02:59]} 8. Be3 {[%clk 0:02:59]}  Qe8 {[%clk 0:02:58]} 9. d5 {[%clk 0:02:54]}  Ng4 {[%clk 0:02:56]} 10. Bg5 {[%clk 0:02:54]}  f5 {[%clk 0:02:53]} 11. exf5 {[%clk 0:02:34]}  gxf5 {[%clk 0:02:53]} 12. h3 {[%clk 0:02:16]}  Nf6 {[%clk 0:02:50]} 13. Qc2 {[%clk 0:02:08]}  Qg6 {[%clk 0:02:47]} 14. Be3 {[%clk 0:01:53]}  Nb4 {[%clk 0:02:31]} 15. Qb1 {[%clk 0:01:30]}  f4 {[%clk 0:02:26]} 16. Qxg6 {[%clk 0:01:31]}  hxg6 {[%clk 0:02:26]} 17. Bd2 {[%clk 0:01:20]}  Bf5 {[%clk 0:02:26]} 18. Nh4 {[%clk 0:01:16]}  Nc2 {[%clk 0:02:25]} 19. Rac1 {[%clk 0:01:13]}  Nd4 {[%clk 0:02:24]} 20. Nxf5 {[%clk 0:01:11]}  gxf5 {[%clk 0:02:25]} 21. Bd3 {[%clk 0:01:05]}  f3 {[%clk 0:02:20]} 22. Be3 {[%clk 0:01:01]}  fxg2 {[%clk 0:02:15]} 23. Kxg2 {[%clk 0:01:01]}  Nh5 {[%clk 0:02:15]} 24. Rg1 {[%clk 0:00:57]}  e4 {[%clk 0:02:12]} 25. Be2 {[%clk 0:00:50]}  Nxe2 {[%clk 0:02:11]} 26. Nxe2 {[%clk 0:00:50]}  f4 {[%clk 0:02:12]} 27. Bd4 {[%clk 0:00:35]}  f3+ {[%clk 0:02:10]} 28. Kh1 {[%clk 0:00:36]}  fxe2 {[%clk 0:02:10]} 29. Rg5 {[%clk 0:00:37]}  Kf7 {[%clk 0:02:10]} 0-1


[Site "https://www.chess.com"]

[Event "Titled Tuesday Blitz April 4 Late 2023"]
[White "Fedoseev, Vladimir"]
[Black "Sieciechowicz, Marcin"]
[WhiteFideId "24130737"]
[BlackFideId "1130170"]
[WhiteElo "2752"]
[BlackElo "2302"]
[Result "1-0"]
[Round "02"]
[TimeControl "180+2"]
[Date "2023.04.04"]
[WhiteClock "0:00:23"]
[BlackClock "0:00:12"]

1. b4 {[%clk 0:03:00]}  e5 {[%clk 0:02:53]} 2. Bb2 {[%clk 0:03:00]}  Bxb4 {[%clk 0:02:52]} 3. Bxe5 {[%clk 0:03:00]}  Nf6 {[%clk 0:02:53]} 4. e3 {[%clk 0:02:58]}  d5 {[%clk 0:02:52]} 5. c3 {[%clk 0:02:54]}  Bd6 {[%clk 0:02:52]} 6. Bxf6 {[%clk 0:02:50]}  Qxf6 {[%clk 0:02:51]} 7. g3 {[%clk 0:02:51]}  O-O {[%clk 0:02:51]} 8. Bg2 {[%clk 0:02:50]}  c6 {[%clk 0:02:48]} 9. d4 {[%clk 0:02:50]}  Bf5 {[%clk 0:02:44]} 10. Nd2 {[%clk 0:02:48]}  Nd7 {[%clk 0:02:43]} 11. Ne2 {[%clk 0:02:42]}  b5 {[%clk 0:02:41]} 12. a4 {[%clk 0:02:32]}  a6 {[%clk 0:02:39]} 13. e4 {[%clk 0:02:24]}  dxe4 {[%clk 0:02:32]} 14. Nxe4 {[%clk 0:02:24]}  Bxe4 {[%clk 0:02:21]} 15. Bxe4 {[%clk 0:02:22]}  Rae8 {[%clk 0:01:58]} 16. Qd3 {[%clk 0:02:09]}  c5 {[%clk 0:01:54]} 17. axb5 {[%clk 0:01:57]}  axb5 {[%clk 0:01:45]} 18. O-O {[%clk 0:01:25]}  cxd4 {[%clk 0:01:40]} 19. cxd4 {[%clk 0:01:21]}  Qe6 {[%clk 0:01:31]} 20. Nc3 {[%clk 0:01:13]}  b4 {[%clk 0:01:14]} 21. Bxh7+ {[%clk 0:01:10]}  Kh8 {[%clk 0:01:14]} 22. Bf5 {[%clk 0:01:03]}  Qb3 {[%clk 0:01:07]} 23. Bxd7 {[%clk 0:00:34]}  Re7 {[%clk 0:00:47]} 24. Ra5 {[%clk 0:00:32]}  g6 {[%clk 0:00:43]} 25. Qa6 {[%clk 0:00:31]}  Rxd7 {[%clk 0:00:33]} 26. Ne4 {[%clk 0:00:31]}  Be7 {[%clk 0:00:26]} 27. Re5 {[%clk 0:00:26]}  Bd8 {[%clk 0:00:12]} 28. Nc5 {[%clk 0:00:23]} 1-0


[Site "https://www.chess.com"]

[Event "Titled Tuesday Blitz April 4 Late 2023"]
[White "Danielyan, Vahe"]
[Black "Bortnyk, Olexandr"]
[WhiteFideId "13304828"]
[BlackFideId "14120828"]
[WhiteElo "2423"]
[BlackElo "2734"]
[Result "1-0"]
[Round "02"]
[TimeControl "180+2"]
[Date "2023.04.04"]
[WhiteClock "0:00:07"]
[BlackClock "0:00:01"]

1. e4 {[%clk 0:02:59]}  Nf6 {[%clk 0:02:59]} 2. d3 {[%clk 0:02:57]}  d5 {[%clk 0:02:58]} 3. Nd2 {[%clk 0:02:58]}  e5 {[%clk 0:02:55]} 4. Ngf3 {[%clk 0:02:57]}  Nc6 {[%clk 0:02:55]} 5. g3 {[%clk 0:02:57]}  Bc5 {[%clk 0:02:54]} 6. Bg2 {[%clk 0:02:55]}  O-O {[%clk 0:02:54]} 7. O-O {[%clk 0:02:56]}  a5 {[%clk 0:02:53]} 8. a4 {[%clk 0:02:53]}  dxe4 {[%clk 0:02:52]} 9. dxe4 {[%clk 0:02:52]}  Qe7 {[%clk 0:02:52]} 10. c3 {[%clk 0:02:47]}  Be6 {[%clk 0:02:41]} 11. Re1 {[%clk 0:02:48]}  Rfd8 {[%clk 0:02:38]} 12. Qe2 {[%clk 0:02:41]}  h6 {[%clk 0:02:27]} 13. h3 {[%clk 0:02:35]}  Rd7 {[%clk 0:02:18]} 14. Nh4 {[%clk 0:02:16]}  Rad8 {[%clk 0:02:10]} 15. Nf5 {[%clk 0:02:14]}  Qf8 {[%clk 0:02:02]} 16. Nc4 {[%clk 0:02:01]}  Rd3 {[%clk 0:01:59]} 17. Nce3 {[%clk 0:01:56]}  g6 {[%clk 0:01:57]} 18. Nd5 {[%clk 0:01:43]}  Nxd5 {[%clk 0:01:44]} 19. Qxd3 {[%clk 0:01:41]}  Nf4 {[%clk 0:01:26]} 20. Qf1 {[%clk 0:01:11]}  Nxg2 {[%clk 0:00:52]} 21. Nxh6+ {[%clk 0:01:05]}  Kg7 {[%clk 0:00:45]} 22. Qxg2 {[%clk 0:01:03]}  f5 {[%clk 0:00:40]} 23. exf5 {[%clk 0:01:00]}  Bd5 {[%clk 0:00:37]} 24. Qf1 {[%clk 0:00:47]}  gxf5 {[%clk 0:00:36]} 25. Qe2 {[%clk 0:00:46]}  Rd6 {[%clk 0:00:33]} 26. Qh5 {[%clk 0:00:35]}  Ne7 {[%clk 0:00:26]} 27. Rxe5 {[%clk 0:00:25]}  Rg6 {[%clk 0:00:08]} 28. Bf4 {[%clk 0:00:21]}  Qf6 {[%clk 0:00:04]} 29. Rae1 {[%clk 0:00:18]}  Bd6 {[%clk 0:00:02]} 30. Rxe7+ {[%clk 0:00:16]}  Bxe7 {[%clk 0:00:02]} 31. Rxe7+ {[%clk 0:00:17]}  Kf8 {[%clk 0:00:02]} 32. Nxf5 {[%clk 0:00:14]}  Bf7 {[%clk 0:00:01]} 33. Bh6+ {[%clk 0:00:10]}  Kg8 {[%clk 0:00:01]} 34. Rxf7 {[%clk 0:00:07]} 1-0


[Site "https://www.chess.com"]